[Event "Late-Titled-Tuesday-Blitz-January-16-2024"]
[Site "Chess.com"]
[Date "2024.01.16"]
[Round "1"]
[White "aceontheturn"]
[Black "szachmistrz2500"]
[Result "1-0"]
[WhiteElo "2758"]
[BlackElo "2425"]
[TimeControl "180+1"]
[EndTime "14:05:27 PST"]
[Termination "aceontheturn won by resignation"]

1. d4 {[%clk 0:03:00.9]} 1... d5 {[%clk 0:02:56.9]} 2. c4 {[%clk 0:02:59.9]}
2... c6 {[%clk 0:02:56.9]} 3. Nc3 {[%clk 0:02:59.9]} 3... Nf6 {[%clk 0:02:57.1]}
4. Nf3 {[%clk 0:03:00.6]} 4... a6 {[%clk 0:02:57.5]} 5. Qc2 {[%clk 0:02:58.6]}
5... b5 {[%clk 0:02:57.6]} 6. e4 {[%clk 0:02:57.4]} 6... b4 {[%clk 0:02:54.7]}
7. e5 {[%clk 0:01:30.1]} 7... bxc3 {[%clk 0:02:53.5]} 8. exf6 {[%clk 0:01:30.6]}
8... cxb2 {[%clk 0:02:53.5]} 9. Bxb2 {[%clk 0:01:23]} 9... exf6 {[%clk
0:02:49.5]} 10. Bd3 {[%clk 0:01:12.6]} 10... Bb4+ {[%clk 0:02:47.3]} 11. Kd1
{[%clk 0:01:10.1]} 11... O-O {[%clk 0:02:44.4]} 12. Bxh7+ {[%clk 0:01:09.9]}
12... Kh8 {[%clk 0:02:44.7]} 13. Bf5 {[%clk 0:01:02.5]} 13... c5 {[%clk
0:02:41]} 14. Bxc8 {[%clk 0:00:55.9]} 14... Qxc8 {[%clk 0:02:40.5]} 15. a3
{[%clk 0:00:56.5]} 15... Ba5 {[%clk 0:02:39.6]} 16. cxd5 {[%clk 0:00:57]} 16...
c4 {[%clk 0:02:38.8]} 17. Bc3 {[%clk 0:00:51.4]} 17... Bxc3 {[%clk 0:02:32.4]}
18. Qxc3 {[%clk 0:00:52.3]} 18... Nd7 {[%clk 0:02:32.5]} 19. Rb1 {[%clk
0:00:41.7]} 19... Rb8 {[%clk 0:02:30.2]} 20. Rxb8 {[%clk 0:00:41.2]} 20... Qxb8
{[%clk 0:02:30.4]} 21. Re1 {[%clk 0:00:34]} 21... Qb1+ {[%clk 0:02:13.7]} 22.
Ke2 {[%clk 0:00:32]} 22... Re8+ {[%clk 0:02:00.5]} 23. Kf1 {[%clk 0:00:32.4]}
23... Rxe1+ {[%clk 0:02:00]} 24. Qxe1 {[%clk 0:00:32.9]} 24... Qd3+ {[%clk
0:01:55.6]} 25. Qe2 {[%clk 0:00:33.3]} 25... Qb1+ {[%clk 0:01:50.7]} 26. Ne1
{[%clk 0:00:33.8]} 26... Nb6 {[%clk 0:01:50.2]} 27. d6 {[%clk 0:00:32.1]} 27...
c3 {[%clk 0:01:49.3]} 28. d7 {[%clk 0:00:24.9]} 28... Nxd7 {[%clk 0:01:42.5]}
29. Qe8+ {[%clk 0:00:25.6]} 29... Kh7 {[%clk 0:01:43.1]} 30. Qxd7 {[%clk
0:00:26.2]} 30... c2 {[%clk 0:01:43.6]} 31. Qf5+ {[%clk 0:00:26.6]} 31... g6
{[%clk 0:01:41.7]} 32. Qxc2 {[%clk 0:00:27.5]} 32... Qb5+ {[%clk 0:01:41.8]} 33.
Qd3 {[%clk 0:00:27.8]} 33... Qd5 {[%clk 0:01:41.2]} 34. Kg1 {[%clk 0:00:24]}
34... f5 {[%clk 0:01:40.9]} 35. g3 {[%clk 0:00:24.4]} 35... Kg7 {[%clk
0:01:39.6]} 36. Nf3 {[%clk 0:00:24.9]} 1-0

[Event "Late-Titled-Tuesday-Blitz-January-16-2024"]
[Site "Chess.com"]
[Date "2024.01.16"]
[Round "1"]
[White "HajiyevKanan"]
[Black "Hirna2005"]
[Result "0-1"]
[WhiteElo "2575"]
[BlackElo "2258"]
[TimeControl "180+1"]
[EndTime "14:05:29 PST"]
[Termination "Hirna2005 won by resignation"]

1. d4 {[%clk 0:02:59.7]} 1... g6 {[%clk 0:03:00.6]} 2. Nf3 {[%clk 0:02:56.1]}
2... Bg7 {[%clk 0:03:01.2]} 3. b3 {[%clk 0:02:56.8]} 3... d6 {[%clk 0:03:01.3]}
4. Bb2 {[%clk 0:02:57.5]} 4... Nd7 {[%clk 0:03:01.1]} 5. e3 {[%clk 0:02:57.6]}
5... c5 {[%clk 0:03:01.2]} 6. Be2 {[%clk 0:02:57.3]} 6... Ngf6 {[%clk
0:02:59.8]} 7. O-O {[%clk 0:02:57.2]} 7... O-O {[%clk 0:02:59.4]} 8. c4 {[%clk
0:02:57.9]} 8... b6 {[%clk 0:02:52.6]} 9. d5 {[%clk 0:02:57.3]} 9... a6 {[%clk
0:02:50.4]} 10. Nc3 {[%clk 0:02:57.5]} 10... Rb8 {[%clk 0:02:50]} 11. a4 {[%clk
0:02:56.9]} 11... Qc7 {[%clk 0:02:49.1]} 12. Qc2 {[%clk 0:02:57]} 12... e6
{[%clk 0:02:45.7]} 13. dxe6 {[%clk 0:02:56.9]} 13... fxe6 {[%clk 0:02:45.3]} 14.
Rfd1 {[%clk 0:02:57.1]} 14... Rd8 {[%clk 0:02:20.4]} 15. Ng5 {[%clk 0:02:54.5]}
15... Nf8 {[%clk 0:02:20.5]} 16. Nce4 {[%clk 0:02:50]} 16... Nxe4 {[%clk
0:02:14.5]} 17. Nxe4 {[%clk 0:02:48.3]} 17... Bb7 {[%clk 0:02:05]} 18. Nf6+
{[%clk 0:02:46.9]} 18... Kh8 {[%clk 0:01:59.2]} 19. Rd2 {[%clk 0:02:36.9]} 19...
Qe7 {[%clk 0:01:55]} 20. Ne4 {[%clk 0:02:29.4]} 20... d5 {[%clk 0:01:50.2]} 21.
Ng3 {[%clk 0:02:23.3]} 21... d4 {[%clk 0:01:43.6]} 22. exd4 {[%clk 0:02:15]}
22... cxd4 {[%clk 0:01:43.3]} 23. Bd3 {[%clk 0:02:11.4]} 23... e5 {[%clk
0:01:41.4]} 24. Ne4 {[%clk 0:02:06.6]} 24... Ne6 {[%clk 0:01:39.8]} 25. g3
{[%clk 0:02:04.5]} 25... Nc5 {[%clk 0:01:32.6]} 26. Re1 {[%clk 0:02:01.8]} 26...
Nxd3 {[%clk 0:01:23.5]} 27. Qxd3 {[%clk 0:02:01.6]} 27... Rf8 {[%clk 0:01:23.6]}
28. Rde2 {[%clk 0:01:58]} 28... Qd7 {[%clk 0:01:18.3]} 29. Ba3 {[%clk
0:01:57.4]} 29... Rf5 {[%clk 0:01:12.3]} 30. Nd6 {[%clk 0:01:44.3]} 30... Rh5
{[%clk 0:01:10.8]} 31. Nxb7 {[%clk 0:01:35.5]} 31... Qh3 {[%clk 0:01:06.4]} 32.
f4 {[%clk 0:01:31.4]} 32... Rxb7 {[%clk 0:00:58.3]} 33. fxe5 {[%clk 0:01:28.6]}
33... Bxe5 {[%clk 0:00:56.7]} 34. Rxe5 {[%clk 0:01:17.5]} 34... Qxh2+ {[%clk
0:00:56]} 35. Kf1 {[%clk 0:01:18]} 35... Rf7+ {[%clk 0:00:52.4]} 36. Rf5 {[%clk
0:01:11.9]} 36... Rhxf5+ {[%clk 0:00:50.7]} 0-1

[Event "Late-Titled-Tuesday-Blitz-January-16-2024"]
[Site "Chess.com"]
[Date "2024.01.16"]
[Round "1"]
[White "momotaro77"]
[Black "TheCount"]
[Result "1-0"]
[WhiteElo "2366"]
[BlackElo "2611"]
[TimeControl "180+1"]
[EndTime "14:05:38 PST"]
[Termination "momotaro77 won by checkmate"]

1. e4 {[%clk 0:03:00.9]} 1... c5 {[%clk 0:02:58]} 2. Nf3 {[%clk 0:03:00.5]} 2...
Nc6 {[%clk 0:02:57.8]} 3. d4 {[%clk 0:02:59.3]} 3... cxd4 {[%clk 0:02:58.7]} 4.
Nxd4 {[%clk 0:02:59.1]} 4... Qb6 {[%clk 0:02:59.4]} 5. Nb3 {[%clk 0:02:56.7]}
5... Nf6 {[%clk 0:03:00.1]} 6. Nc3 {[%clk 0:02:55.8]} 6... e6 {[%clk 0:03:00.7]}
7. a3 {[%clk 0:02:53.3]} 7... Qc7 {[%clk 0:02:59]} 8. g4 {[%clk 0:02:50.6]} 8...
d5 {[%clk 0:02:52.5]} 9. exd5 {[%clk 0:02:44.8]} 9... Nxd5 {[%clk 0:02:53.4]}
10. Nxd5 {[%clk 0:02:43]} 10... exd5 {[%clk 0:02:54.3]} 11. Qxd5 {[%clk
0:02:40.6]} 11... Bxg4 {[%clk 0:02:53.7]} 12. Qe4+ {[%clk 0:02:32.1]} 12... Qe5
{[%clk 0:02:53.2]} 13. Bg2 {[%clk 0:02:29.1]} 13... O-O-O {[%clk 0:02:44.2]} 14.
O-O {[%clk 0:02:19.1]} 14... Bf5 {[%clk 0:02:05.1]} 15. Qxe5 {[%clk 0:02:15.8]}
15... Nxe5 {[%clk 0:02:06]} 16. Bf4 {[%clk 0:02:14.3]} 16... Nc4 {[%clk
0:02:03.6]} 17. c3 {[%clk 0:02:12.1]} 17... Bd6 {[%clk 0:02:00.5]} 18. Bxd6
{[%clk 0:02:08.2]} 18... Rxd6 {[%clk 0:02:01.4]} 19. Nd4 {[%clk 0:02:08.3]}
19... Bg4 {[%clk 0:01:39.2]} 20. Rfe1 {[%clk 0:02:05.7]} 20... Rhd8 {[%clk
0:01:20.3]} 21. Re7 {[%clk 0:02:02.9]} 21... R6d7 {[%clk 0:01:19.8]} 22. Rae1
{[%clk 0:02:00.2]} 22... a6 {[%clk 0:01:09.7]} 23. h3 {[%clk 0:01:53.7]} 23...
Bh5 {[%clk 0:01:04.8]} 24. Nb3 {[%clk 0:01:46.6]} 24... b6 {[%clk 0:00:38.7]}
25. Nd4 {[%clk 0:01:40.7]} 25... Rxe7 {[%clk 0:00:30.9]} 26. Rxe7 {[%clk
0:01:40.3]} 26... Rd7 {[%clk 0:00:31.6]} 27. Re8+ {[%clk 0:01:36.3]} 27... Kc7
{[%clk 0:00:25.1]} 28. Ra8 {[%clk 0:01:30.3]} 28... Nxb2 {[%clk 0:00:15.4]} 29.
Rxa6 {[%clk 0:01:30]} 29... Nc4 {[%clk 0:00:14.1]} 30. Ra8 {[%clk 0:01:28.6]}
30... Bg6 {[%clk 0:00:11.7]} 31. Nb5# {[%clk 0:01:28.8]} 1-0

[Event "Late-Titled-Tuesday-Blitz-January-16-2024"]
[Site "Chess.com"]
[Date "2024.01.16"]
[Round "1"]
[White "carloseduar100"]
[Black "TangerineandLemon25"]
[Result "1-0"]
[WhiteElo "2285"]
[BlackElo "2604"]
[TimeControl "180+1"]
[EndTime "14:05:39 PST"]
[Termination "carloseduar100 won by resignation"]

1. g3 {[%clk 0:02:54.7]} 1... g6 {[%clk 0:02:58.4]} 2. Bg2 {[%clk 0:02:53.9]}
2... Bg7 {[%clk 0:02:59.3]} 3. Nf3 {[%clk 0:02:54.6]} 3... Nf6 {[%clk
0:02:59.7]} 4. O-O {[%clk 0:02:55.5]} 4... O-O {[%clk 0:03:00.2]} 5. d4 {[%clk
0:02:56.3]} 5... d5 {[%clk 0:03:00.4]} 6. c3 {[%clk 0:02:57.2]} 6... c5 {[%clk
0:03:00.3]} 7. Nbd2 {[%clk 0:02:58.1]} 7... Nc6 {[%clk 0:03:00.9]} 8. Re1 {[%clk
0:02:57.3]} 8... Qc7 {[%clk 0:02:57.8]} 9. dxc5 {[%clk 0:02:56.8]} 9... e5
{[%clk 0:02:58.1]} 10. b4 {[%clk 0:02:56]} 10... a5 {[%clk 0:02:57.4]} 11. b5
{[%clk 0:02:52.1]} 11... Nd8 {[%clk 0:02:40.8]} 12. a4 {[%clk 0:02:47.8]} 12...
Ne6 {[%clk 0:02:33.4]} 13. e4 {[%clk 0:02:43.8]} 13... Nxc5 {[%clk 0:02:30.7]}
14. exd5 {[%clk 0:02:43.8]} 14... Nxd5 {[%clk 0:02:31.6]} 15. Qc2 {[%clk
0:02:01.8]} 15... Ne6 {[%clk 0:02:26.3]} 16. Ba3 {[%clk 0:01:55.3]} 16... Rd8
{[%clk 0:02:24.3]} 17. c4 {[%clk 0:01:55.2]} 17... Nb4 {[%clk 0:02:22.3]} 18.
Bxb4 {[%clk 0:01:55.2]} 18... axb4 {[%clk 0:02:23.2]} 19. Rab1 {[%clk
0:01:42.9]} 19... Nc5 {[%clk 0:02:20.8]} 20. Rxb4 {[%clk 0:01:21.1]} 20... Nd3
{[%clk 0:02:20.2]} 21. Rbb1 {[%clk 0:01:21.8]} 21... Nxe1 {[%clk 0:02:18]} 22.
Rxe1 {[%clk 0:01:22.4]} 22... Bf5 {[%clk 0:02:18.7]} 23. Qb3 {[%clk 0:01:15.9]}
23... Rd3 {[%clk 0:02:18.8]} 24. Qb4 {[%clk 0:01:16.2]} 24... Bf8 {[%clk
0:02:13.3]} 25. Qb2 {[%clk 0:00:58.3]} 25... f6 {[%clk 0:02:13.1]} 26. Bf1
{[%clk 0:00:41.4]} 26... Rdd8 {[%clk 0:02:03.8]} 27. Qa2 {[%clk 0:00:32]} 27...
Bc5 {[%clk 0:02:02.1]} 28. Ne4 {[%clk 0:00:27.7]} 28... Bxe4 {[%clk 0:02:00.4]}
29. Rxe4 {[%clk 0:00:28.6]} 29... Rd1 {[%clk 0:02:00.5]} 30. Kg2 {[%clk
0:00:28.4]} 30... Qd7 {[%clk 0:01:58.5]} 31. Re2 {[%clk 0:00:24.4]} 31... b6
{[%clk 0:01:55.2]} 32. Rd2 {[%clk 0:00:20.4]} 32... Rxd2 {[%clk 0:01:54.1]} 33.
Nxd2 {[%clk 0:00:21.3]} 33... Rd8 {[%clk 0:01:51.9]} 34. Ne4 {[%clk 0:00:20.8]}
34... Qb7 {[%clk 0:01:51.9]} 35. f3 {[%clk 0:00:20.4]} 35... Be7 {[%clk
0:01:52.5]} 36. a5 {[%clk 0:00:19]} 36... bxa5 {[%clk 0:01:51.6]} 37. c5+ {[%clk
0:00:19.6]} 37... Kg7 {[%clk 0:01:49.8]} 38. c6 {[%clk 0:00:20]} 38... Qxb5
{[%clk 0:01:49.3]} 39. Bxb5 {[%clk 0:00:19.3]} 1-0

[Event "Late-Titled-Tuesday-Blitz-January-16-2024"]
[Site "Chess.com"]
[Date "2024.01.16"]
[Round "1"]
[White "chucksterf10"]
[Black "Sacbutt"]
[Result "0-1"]
[WhiteElo "2630"]
[BlackElo "2354"]
[TimeControl "180+1"]
[EndTime "14:05:40 PST"]
[Termination "Sacbutt won by resignation"]

1. c4 {[%clk 0:02:59]} 1... Nf6 {[%clk 0:02:59.2]} 2. Nc3 {[%clk 0:02:58.8]}
2... e6 {[%clk 0:02:59.1]} 3. g3 {[%clk 0:02:57.7]} 3... d5 {[%clk 0:02:59.1]}
4. d4 {[%clk 0:02:57.7]} 4... Be7 {[%clk 0:02:59.4]} 5. Nf3 {[%clk 0:02:58]}
5... O-O {[%clk 0:02:59.6]} 6. Bg2 {[%clk 0:02:58.2]} 6... Nbd7 {[%clk
0:02:57.9]} 7. O-O {[%clk 0:02:59.1]} 7... b6 {[%clk 0:02:55.8]} 8. cxd5 {[%clk
0:02:53.7]} 8... exd5 {[%clk 0:02:54.6]} 9. Bf4 {[%clk 0:02:54.3]} 9... c6
{[%clk 0:02:47.7]} 10. Rc1 {[%clk 0:02:53.8]} 10... Bb7 {[%clk 0:02:46.9]} 11.
Ne5 {[%clk 0:02:52.4]} 11... Nxe5 {[%clk 0:02:38.3]} 12. dxe5 {[%clk 0:02:53.3]}
12... Ne8 {[%clk 0:02:28.7]} 13. h4 {[%clk 0:02:51.6]} 13... Nc7 {[%clk
0:02:26.7]} 14. e3 {[%clk 0:02:45.9]} 14... Ne6 {[%clk 0:02:25.8]} 15. Qh5
{[%clk 0:02:40.5]} 15... g6 {[%clk 0:02:00.3]} 16. Qe2 {[%clk 0:02:34.3]} 16...
Kg7 {[%clk 0:01:53.8]} 17. Rfd1 {[%clk 0:02:31.8]} 17... Qe8 {[%clk 0:01:51.3]}
18. h5 {[%clk 0:02:23.4]} 18... g5 {[%clk 0:01:48.4]} 19. Qg4 {[%clk 0:02:22.7]}
19... Kh8 {[%clk 0:01:47.6]} 20. h6 {[%clk 0:02:17.3]} 20... gxf4 {[%clk
0:01:42.3]} 21. exf4 {[%clk 0:02:18.2]} 21... Rg8 {[%clk 0:01:39.8]} 22. Qf5
{[%clk 0:02:18.3]} 22... Rg6 {[%clk 0:01:33.5]} 23. Qh5 {[%clk 0:02:14.3]} 23...
Qf8 {[%clk 0:01:23.5]} 24. f5 {[%clk 0:02:14.7]} 24... Rxh6 {[%clk 0:01:23.6]}
25. Qg4 {[%clk 0:02:15.2]} 25... Nd8 {[%clk 0:01:06.1]} 26. Qf4 {[%clk 0:02:05]}
26... f6 {[%clk 0:01:00.6]} 27. Re1 {[%clk 0:01:56.8]} 27... fxe5 {[%clk
0:00:57.2]} 28. Qxe5+ {[%clk 0:01:57.7]} 28... Bf6 {[%clk 0:00:56.2]} 29. Qc7
{[%clk 0:01:58.3]} 29... Rc8 {[%clk 0:00:51.2]} 30. Qf4 {[%clk 0:01:58.9]} 30...
Rh5 {[%clk 0:00:42.3]} 31. g4 {[%clk 0:01:58]} 31... Rg5 {[%clk 0:00:37.1]} 32.
Ne2 {[%clk 0:01:52.9]} 32... Rg8 {[%clk 0:00:32.4]} 33. Nd4 {[%clk 0:01:50.9]}
33... Qg7 {[%clk 0:00:31]} 34. Ne6 {[%clk 0:01:49.8]} 34... Nxe6 {[%clk
0:00:30.3]} 35. fxe6 {[%clk 0:01:49.2]} 35... Bg5 {[%clk 0:00:29.2]} 36. Qf7
{[%clk 0:01:41.2]} 36... Bxc1 {[%clk 0:00:27.3]} 37. Rd1 {[%clk 0:01:41.3]}
37... Qxf7 {[%clk 0:00:25.7]} 38. exf7 {[%clk 0:01:42.2]} 38... Rgf8 {[%clk
0:00:26]} 39. Rxc1 {[%clk 0:01:42.6]} 39... Rxf7 {[%clk 0:00:26.1]} 40. b4
{[%clk 0:01:41.3]} 40... c5 {[%clk 0:00:25.7]} 41. b5 {[%clk 0:01:40.1]} 41...
c4 {[%clk 0:00:25.7]} 42. Kf1 {[%clk 0:01:38.2]} 42... d4 {[%clk 0:00:26.1]} 43.
Ke2 {[%clk 0:01:38.7]} 43... Bxg2 {[%clk 0:00:25]} 0-1

[Event "Late-Titled-Tuesday-Blitz-January-16-2024"]
[Site "Chess.com"]
[Date "2024.01.16"]
[Round "1"]
[White "MajorCoast"]
[Black "ozates"]
[Result "1-0"]
[WhiteElo "2227"]
[BlackElo "2567"]
[TimeControl "180+1"]
[EndTime "14:05:55 PST"]
[Termination "MajorCoast won by resignation"]

1. d4 {[%clk 0:02:59.3]} 1... Nf6 {[%clk 0:02:59.5]} 2. Nf3 {[%clk 0:02:59]}
2... g6 {[%clk 0:02:58.2]} 3. Bg5 {[%clk 0:02:57.9]} 3... Bg7 {[%clk 0:02:58.2]}
4. c3 {[%clk 0:02:56]} 4... O-O {[%clk 0:02:58.1]} 5. Nbd2 {[%clk 0:02:56.4]}
5... d5 {[%clk 0:02:57.9]} 6. e3 {[%clk 0:02:56.1]} 6... a5 {[%clk 0:02:52.1]}
7. h3 {[%clk 0:02:56.4]} 7... c6 {[%clk 0:02:51.2]} 8. a4 {[%clk 0:02:56.4]}
8... Nbd7 {[%clk 0:02:50.1]} 9. Bd3 {[%clk 0:02:54.4]} 9... Qc7 {[%clk
0:02:49.9]} 10. Bf4 {[%clk 0:02:51.2]} 10... Qd8 {[%clk 0:02:47.9]} 11. O-O
{[%clk 0:02:51.3]} 11... Re8 {[%clk 0:02:43]} 12. e4 {[%clk 0:02:51.6]} 12...
dxe4 {[%clk 0:02:42.2]} 13. Nxe4 {[%clk 0:02:52.5]} 13... Nxe4 {[%clk
0:02:42.9]} 14. Bxe4 {[%clk 0:02:53.4]} 14... Nf6 {[%clk 0:02:40]} 15. Bd3
{[%clk 0:02:51.4]} 15... Be6 {[%clk 0:02:37.4]} 16. Ng5 {[%clk 0:02:46.6]} 16...
Bd5 {[%clk 0:02:20.2]} 17. c4 {[%clk 0:02:43]} 17... h6 {[%clk 0:02:17.1]} 18.
cxd5 {[%clk 0:02:31.2]} 18... hxg5 {[%clk 0:02:16.4]} 19. Bxg5 {[%clk
0:02:31.9]} 19... Qxd5 {[%clk 0:02:16.6]} 20. Be3 {[%clk 0:02:22.4]} 20... Rad8
{[%clk 0:02:12.8]} 21. Rc1 {[%clk 0:02:21]} 21... e5 {[%clk 0:02:04.7]} 22. Bc4
{[%clk 0:02:19.8]} 22... Qe4 {[%clk 0:01:59.9]} 23. Qb3 {[%clk 0:02:16.9]} 23...
Nd5 {[%clk 0:01:54.7]} 24. dxe5 {[%clk 0:02:10.9]} 24... Re7 {[%clk 0:01:48.5]}
25. Bg5 {[%clk 0:02:09.6]} 25... Qxe5 {[%clk 0:01:42.3]} 26. Bxe7 {[%clk
0:02:07.9]} 26... Qxe7 {[%clk 0:01:43.2]} 27. Rcd1 {[%clk 0:01:59.6]} 27... Qb4
{[%clk 0:01:20.3]} 28. Bxd5 {[%clk 0:01:53.6]} 28... Rxd5 {[%clk 0:01:12.3]} 29.
Qxb4 {[%clk 0:01:49.9]} 29... axb4 {[%clk 0:01:10.3]} 30. Rxd5 {[%clk
0:01:49.3]} 30... cxd5 {[%clk 0:01:11.2]} 31. b3 {[%clk 0:01:49.3]} 31... Bc3
{[%clk 0:01:08.8]} 32. Rd1 {[%clk 0:01:47.3]} 32... d4 {[%clk 0:01:09.1]} 33.
Rd3 {[%clk 0:01:47.6]} 33... f5 {[%clk 0:01:09]} 34. Kf1 {[%clk 0:01:48.2]}
34... Kf7 {[%clk 0:01:09.6]} 35. Ke2 {[%clk 0:01:48.5]} 35... Ke6 {[%clk
0:01:10.2]} 36. Rd1 {[%clk 0:01:48.8]} 36... Kd5 {[%clk 0:01:07.8]} 37. Kd3
{[%clk 0:01:49.2]} 37... g5 {[%clk 0:01:05.6]} 38. f3 {[%clk 0:01:48.6]} 38...
Ke5 {[%clk 0:01:03.8]} 39. Rc1 {[%clk 0:01:47.2]} 39... Kf4 {[%clk 0:01:03.1]}
40. Rc2 {[%clk 0:01:45.3]} 40... Kg3 {[%clk 0:01:02.5]} 41. Re2 {[%clk
0:01:39.6]} 41... f4 {[%clk 0:00:54.5]} 42. Re5 {[%clk 0:01:33.9]} 42... Kxg2
{[%clk 0:00:54.4]} 43. Rxg5+ {[%clk 0:01:33.9]} 43... Kxf3 {[%clk 0:00:55]} 44.
h4 {[%clk 0:01:29.5]} 44... Kf2 {[%clk 0:00:55]} 45. h5 {[%clk 0:01:27.9]} 45...
f3 {[%clk 0:00:55.5]} 46. h6 {[%clk 0:01:26.4]} 46... Ke1 {[%clk 0:00:52.4]} 47.
h7 {[%clk 0:01:22.6]} 47... f2 {[%clk 0:00:52.4]} 48. Rf5 {[%clk 0:01:19.7]} 1-0

[Event "Late-Titled-Tuesday-Blitz-January-16-2024"]
[Site "Chess.com"]
[Date "2024.01.16"]
[Round "1"]
[White "GMAkobianSTL"]
[Black "RianKapriaga"]
[Result "1-0"]
[WhiteElo "2699"]
[BlackElo "2378"]
[TimeControl "180+1"]
[EndTime "14:05:58 PST"]
[Termination "GMAkobianSTL won on time"]

1. d4 {[%clk 0:03:00.9]} 1... Nf6 {[%clk 0:02:55.6]} 2. c4 {[%clk 0:03:00.5]}
2... e6 {[%clk 0:02:55.1]} 3. Nf3 {[%clk 0:03:00.2]} 3... d5 {[%clk 0:02:53.1]}
4. cxd5 {[%clk 0:02:59.7]} 4... exd5 {[%clk 0:02:52.2]} 5. Nc3 {[%clk
0:03:00.3]} 5... Be7 {[%clk 0:02:50.6]} 6. Bg5 {[%clk 0:02:59.7]} 6... h6 {[%clk
0:02:45.7]} 7. Bh4 {[%clk 0:02:59.1]} 7... O-O {[%clk 0:02:43.3]} 8. e3 {[%clk
0:02:58.9]} 8... c6 {[%clk 0:02:41.2]} 9. Bd3 {[%clk 0:02:58.2]} 9... Re8 {[%clk
0:02:40.3]} 10. Qc2 {[%clk 0:02:56.6]} 10... Ne4 {[%clk 0:02:37.8]} 11. Bxe7
{[%clk 0:02:55.6]} 11... Qxe7 {[%clk 0:02:35.3]} 12. O-O {[%clk 0:02:54.9]}
12... Bf5 {[%clk 0:02:33.9]} 13. Rab1 {[%clk 0:02:54.6]} 13... a5 {[%clk
0:02:25.6]} 14. Bxe4 {[%clk 0:02:50.9]} 14... dxe4 {[%clk 0:02:16.3]} 15. Ne5
{[%clk 0:02:50.5]} 15... f6 {[%clk 0:01:56.1]} 16. Nc4 {[%clk 0:02:49.8]} 16...
Nd7 {[%clk 0:01:54.4]} 17. Rfc1 {[%clk 0:02:30.1]} 17... Kh8 {[%clk 0:01:49.5]}
18. a3 {[%clk 0:02:21.3]} 18... Bg6 {[%clk 0:01:45.6]} 19. b4 {[%clk 0:02:20.5]}
19... axb4 {[%clk 0:01:44]} 20. axb4 {[%clk 0:02:20.4]} 20... f5 {[%clk
0:01:40]} 21. b5 {[%clk 0:02:18.5]} 21... Qg5 {[%clk 0:00:56.9]} 22. bxc6 {[%clk
0:02:11.9]} 22... bxc6 {[%clk 0:00:54.8]} 23. Rb7 {[%clk 0:02:05.3]} 23... Nf6
{[%clk 0:00:51.4]} 24. Ne5 {[%clk 0:02:02.1]} 24... Bh5 {[%clk 0:00:47]} 25. Ne2
{[%clk 0:01:56.3]} 25... Rxe5 {[%clk 0:00:30.1]} 26. dxe5 {[%clk 0:01:55.1]}
26... Bf3 {[%clk 0:00:28.8]} 27. Ng3 {[%clk 0:01:48.5]} 27... Ng4 {[%clk
0:00:27.3]} 28. gxf3 {[%clk 0:01:35]} 28... Nxh2 {[%clk 0:00:24.1]} 29. Kxh2
{[%clk 0:01:31.4]} 29... Qh4+ {[%clk 0:00:17.8]} 30. Kg1 {[%clk 0:01:31.4]}
30... Ra2 {[%clk 0:00:02.9]} 31. Qxa2 {[%clk 0:01:27.4]} 1-0

[Event "Late-Titled-Tuesday-Blitz-January-16-2024"]
[Site "Chess.com"]
[Date "2024.01.16"]
[Round "1"]
[White "Firouzja2003"]
[Black "Championnn-9"]
[Result "1-0"]
[WhiteElo "3166"]
[BlackElo "2527"]
[TimeControl "180+1"]
[EndTime "14:05:59 PST"]
[Termination "Firouzja2003 won by resignation"]

1. e4 {[%clk 0:02:58]} 1... c5 {[%clk 0:02:59.5]} 2. Nf3 {[%clk 0:02:58.2]} 2...
Nc6 {[%clk 0:02:58.7]} 3. d4 {[%clk 0:02:58.2]} 3... cxd4 {[%clk 0:02:58.8]} 4.
Nxd4 {[%clk 0:02:59.1]} 4... g6 {[%clk 0:02:57.9]} 5. c4 {[%clk 0:02:58.9]} 5...
Bg7 {[%clk 0:02:57.9]} 6. Be3 {[%clk 0:02:59.7]} 6... Nf6 {[%clk 0:02:58.1]} 7.
Nc3 {[%clk 0:02:59.9]} 7... d6 {[%clk 0:02:58.7]} 8. f3 {[%clk 0:03:00.3]} 8...
O-O {[%clk 0:02:58.7]} 9. Qd2 {[%clk 0:03:00.2]} 9... Bd7 {[%clk 0:02:58.2]} 10.
Be2 {[%clk 0:02:59.3]} 10... Nxd4 {[%clk 0:02:55.7]} 11. Bxd4 {[%clk 0:03:00.2]}
11... a5 {[%clk 0:02:55.6]} 12. O-O {[%clk 0:02:59.6]} 12... Bc6 {[%clk
0:02:55.6]} 13. b3 {[%clk 0:03:00]} 13... Nd7 {[%clk 0:02:55.6]} 14. Be3 {[%clk
0:03:00.3]} 14... Nc5 {[%clk 0:02:55.9]} 15. Rab1 {[%clk 0:03:00.6]} 15... Qb6
{[%clk 0:02:54.8]} 16. Rfc1 {[%clk 0:02:58.7]} 16... Rfc8 {[%clk 0:02:54.2]} 17.
Rc2 {[%clk 0:02:58]} 17... Qd8 {[%clk 0:02:53.3]} 18. Kh1 {[%clk 0:02:57.7]}
18... h5 {[%clk 0:02:49.8]} 19. a3 {[%clk 0:02:55.7]} 19... Kh7 {[%clk
0:02:39.8]} 20. h3 {[%clk 0:02:49.6]} 20... Qh8 {[%clk 0:02:37.8]} 21. b4 {[%clk
0:02:40]} 21... axb4 {[%clk 0:02:31.9]} 22. axb4 {[%clk 0:02:40.9]} 22... Na4
{[%clk 0:02:23.1]} 23. Nd1 {[%clk 0:02:41]} 23... Bd7 {[%clk 0:02:03.2]} 24. f4
{[%clk 0:02:35.1]} 24... Bc6 {[%clk 0:01:40.7]} 25. Bd3 {[%clk 0:02:32.5]} 25...
b6 {[%clk 0:01:28.1]} 26. Qe2 {[%clk 0:02:21.7]} 26... Bd4 {[%clk 0:01:23.4]}
27. e5 {[%clk 0:02:17.9]} 27... dxe5 {[%clk 0:01:16.3]} 28. Bxd4 {[%clk
0:01:56.7]} 28... exd4 {[%clk 0:01:17.2]} 29. Qxe7 {[%clk 0:01:56.4]} 29... Qe8
{[%clk 0:01:17.8]} 30. Qg5 {[%clk 0:01:47.6]} 30... Kg7 {[%clk 0:00:46.1]} 31.
Re2 {[%clk 0:01:47.5]} 31... Qd8 {[%clk 0:00:44.8]} 32. Re7 {[%clk 0:01:47.2]}
32... Qd6 {[%clk 0:00:18.1]} 33. Nf2 {[%clk 0:01:40.8]} 33... Qf6 {[%clk
0:00:16.3]} 34. Qxf6+ {[%clk 0:01:32.3]} 34... Kxf6 {[%clk 0:00:17.2]} 35. Rbe1
{[%clk 0:01:32.5]} 35... Nc3 {[%clk 0:00:16.8]} 36. b5 {[%clk 0:01:32.6]} 36...
Re8 {[%clk 0:00:15.1]} 37. R7e5 {[%clk 0:01:30]} 37... Bb7 {[%clk 0:00:13.5]}
38. Rxe8 {[%clk 0:01:29.8]} 1-0